[Event "Chinese League Division-A 2024"]
[Site "Fuling Chongqing"]
[Date "2024.07.02"]
[Round "6.18"]
[White "Peng, Xiongjian"]
[Black "Xu, Minghui"]
[Result "1-0"]
[ECO "C79"]
[WhiteElo "2521"]
[BlackElo "2388"]
[Annotator "TA"]
[PlyCount "132"]
[EventDate "2024.06.28"]
[EventType "team-tourn"]
[EventCountry "CHN"]
[SourceTitle "playchess.com"]
[Source "ChessBase"]
[SourceQuality "1"]
[TimeControl "40/5400+30:1800+30"]

{[%evp 16,132,27,16,15,0,2,0,0,0,41,0,-16,-16,-9,-31,-27,-40,-29,-27,12,-33,-35,-32,-36,-29,-17,-16,0,0,0,0,0,16,4,7,8,4,16,10,8,0,2,4,4,0,0,2,8,8,3,0,0,-11,0,0,0,0,14,0,0,0,0,-29,-56,-52,-52,-63,-10,-6,-14,-10,-11,-14,-18,-12,-16,-14,-10,-56,-10,-15,28,23,63,8,8,8,8,8,15,8,8,8,12,8,8,8,8,8,8,0,8,8,8,8,8,8,8,0,0,0,29976,29977,29977,29977,29970,29969,5081]} 1. e4 {[%emt 0:00:09]} e5 {[%emt 0:00:18]} 2. Nf3 {[%emt 0:00:06]} Nc6 {[%emt 0:00:05]} 3. Bb5 {[%emt 0:00:06]} Nf6 {[%emt 0:04:04]} 4. d3 {[%emt 0:00:12]} d6 {[%emt 0:00:10]} 5. O-O {[%emt 0:00:52]} Bd7 {[%emt 0:02:41]} 6. c3 {[%emt 0:00:13]} g6 {[%emt 0:00:35]} 7. Re1 {[%emt 0:00:22]} a6 {[%emt 0:00:24]} 8. Ba4 {[%emt 0:01:04]} Bg7 {[%emt 0:00:17]} 9. d4 {[%emt 0:04:37]} b5 {[%emt 0:00:31]} 10. Bb3 {[%emt 0:00:53]} O-O {[%emt 0:00:14]} 11. h3 {[%emt 0:00:41]} Re8 {[%emt 0:10:28] The position is equal.} 12. Nbd2 {[%emt 0:00:09]} a5 {[%emt 0:04:02]} 13. dxe5 {[%emt 0:11:26]} (13. d5 $14 Nb8 14. a4) 13... Nxe5 $11 {[%emt 0:01:54]} 14. Nxe5 {[%emt 0:00:15]} Rxe5 {[%emt 0:20:57]} 15. Nf3 {[%emt 0:03:59]} Re7 {[%emt 0:02:42][%cal Od8e8]} (15... Rxe4 $2 16. Bxf7+ Kxf7 17. Ng5+ Kf8 18. Nxe4 $18) 16. a4 {[%emt 0:09:03]} bxa4 {[%emt 0:03:59]} (16... Nxe4 $2 17. Bd5 Nxf2 18. Kxf2 Rxe1 19. Qxe1 $18) (16... Rxe4 $2 17. Bxf7+ Kh8 18. Rxe4 Nxe4 19. Bd5 $18) 17. Bc2 {[%emt 0:00:10][%cal Oe4e5]} h6 {[%emt 0:06:54]} 18. Bf4 {[%emt 0:04:30][%cal Oe4e5]} Qe8 {[%emt 0:01:23]} 19. e5 {[%emt 0:05:40]} Nh5 {[%emt 0:02:53][%csl LRe5,LRf4]} 20. Bh2 {[%emt 0:09:11] [#] Threatens to win with g4.} dxe5 {[%emt 0:00:27]} 21. Bxa4 {[%emt 0:02:36]} Bxa4 {[%emt 0:11:49]} 22. Qxa4 {[%emt 0:00:23]} Qxa4 {[%emt 0:04:09]} 23. Rxa4 {[%emt 0:00:06][%cal Og2g4]} Rb8 {[%emt 0:00:02]} 24. g4 {[%emt 0:08:47]} Nf6 {[%emt 0:00:05]} 25. Re2 {[%emt 0:00:59]} (25. Nxe5 Nd7 (25... Rxb2 26. Rxa5 h5 27. Re3 $11) 26. Nf3 (26. Rxa5 Rbe8 $17) 26... Rxe1+ 27. Nxe1 Rxb2 $17) 25... Nd5 {[%emt 0:08:22]} 26. Rxa5 {[%emt 0:01:50]} Nb6 {[%emt 0:00:15]} 27. Rb5 {[%emt 0:03:02][%cal Rf3e5]} (27. Bxe5 $2 Nc4 (27... f6 $2 28. Bxc7 Rxc7 29. Kg2 $19) 28. Rc5 Nxe5 29. Rexe5 (29. Nxe5 $2 Rbe8 $19) 29... Bxe5 30. Nxe5 Rxb2 $19) 27... Nd7 {[%emt 0:00:59]} 28. Ra5 {[%emt 0:04:20]} Nb6 {[%emt 0:00:38]} 29. Nd4 {[%emt 0:04:39]} (29. Bxe5 Nc4 (29... f6 $2 30. Bxc7 Rxc7 31. Kh1 $19) 30. Rc5 Nxe5 31. Rexe5 (31. Nxe5 $2 Rbe8 $19) 31... Bxe5 32. Nxe5 Rxb2 $17) 29... Rbe8 {[%emt 0:00:57]} 30. Nc6 {[%emt 0:01:53][%csl LRe5,LRe7]} Re6 {[%emt 0:00:06]} 31. Nb4 {[%emt 0:00:04]} (31. Nxe5 $2 {too greedy.} f6 32. Rc5 R6e7 $19 (32... fxe5 $2 33. Rxc7 e4 34. c4 $19)) 31... f6 {[%emt 0:07:40]} 32. Rc5 {[%emt 0:02:02]} R8e7 {[%emt 0:01:47]} 33. Rd2 {[%emt 0:00:22]} Bf8 {[%emt 0:00:28]} 34. b3 {[%emt 0:02:46]} Kg7 {[%emt 0:01:34]} 35. Rb5 {[%emt 0:01:24]} Kf7 {[%emt 0:01:51]} 36. Kf1 {[%emt 0:04:56]} Nc8 {[%emt 0:00:19]} 37. Rb8 {[%emt 0:01:10]} Nd6 {[%emt 0:00:17]} 38. Nd5 {[%emt 0:06:06]} Rd7 {[%emt 0:00:34]} 39. Ra2 {[%emt 0:00:45]} Re8 {[%emt 0:00:57]} 40. Rxe8 {[%emt 0:00:00]} Nxe8 {[%emt 0:00:00]} 41. Ne3 {[%emt 0:02:19]} Ng7 {[%emt 0:04:52]} (41... Rd3 $15 42. Rc2 Nd6) 42. Ke2 {[%emt 0:01:32]} Ne6 {[%emt 0:00:06]} 43. b4 {[%emt 0:00:55]} Ng5 {[%emt 0:05:17]} 44. h4 {[%emt 0:00:28]} Ne4 {[%emt 0:00:01]} 45. Rc2 {[%emt 0:00:16]} h5 {[%emt 0:00:49]} 46. f3 {[%emt 0:03:09]} Nd6 {[%emt 0:00:02]} 47. c4 {[%emt 0:02:28]} (47. gxh5 $11 gxh5 48. Bg3) 47... Ke6 {[%emt 0:05:23]} (47... c6 $15 {is superior.}) 48. Ra2 {[%emt 0:02:47]} Bh6 {[%emt 0:01:57] Strongly threatening ...Bxe3.} 49. Ra6 {[%emt 0:00:37] c5 would now be deadly.} Bf4 {[%emt 0:08:48]} 50. Bg1 {[%emt 0:01:50]} (50. Bxf4 $14 exf4 51. Ng2 hxg4 52. c5 gxf3+ 53. Kxf3) 50... Kf7 {[%emt 0:01:06]} 51. Rc6 {[%emt 0:01:44]} hxg4 {[%emt 0:05:10]} 52. fxg4 {[%emt 0:01:53]} e4 {[%emt 0:00:03]} 53. Nd5 {[%emt 0:05:03]} Be5 {[%emt 0:00:01]} 54. Nxc7 {[%emt 0:00:19]} f5 {[%emt 0:02:00]} 55. b5 {[%emt 0:04:41]} Nxc4 $1 {[%emt 0:01:42]} 56. Rxc4 {[%emt 0:00:05]} Rxc7 {[%emt 0:00:11]} 57. Rxc7+ {[%emt 0:00:25]} Bxc7 {[%emt 0:00:01][%mdl 4096] Endgame. KB-KB} 58. Ba7 {[%emt 0:03:26] Hoping for gxf5.} fxg4 {[%emt 0:00:29]} 59. b6 {[%emt 0:00:15]} Bh2 {[%emt 0:02:56] White must now prevent ...Bg1.} 60. b7 {[%emt 0:00:06]} g5 {[%emt 0:00:36]} 61. h5 {[%emt 0:03:16]} Kg7 $1 {[%emt 0:00:54]} 62. Bd4+ {[%emt 0:00:47]} (62. b8=Q {simplifies} Bxb8 63. Bxb8 Kh6 64. Ke3) 62... Kh6 {[%emt 0:00:00]} 63. Ke3 {[%emt 0:00:13]} Kxh5 $2 {[%emt 0:00:29][%mdl 8192] [#]} (63... Bb8 $11) 64. Kxe4 {[%emt 0:00:05] White mates.} Bb8 {[%emt 0:00:06]} 65. Be5 {[%emt 0:00:08]} Ba7 {[%emt 0:00:04]} 66. Bg3 {[%emt 0:00:27]} ({Worse is} 66. b8=B Bxb8 67. Bxb8 Kh4 $11) 66... Kg6 {[%emt 0:02:05] Weighted Error Value: White=0.08 (flawless) /Black=0.07 (flawless) .  Loses game:     	---       	Black=1      Mistake:       	White=3     	Black=2      Inaccurate:     	White=2     	Black=4      OK:         	White=19    	Black=33     Best:        	White=3     	---        Strong:       	---       	Black=2} 1-0

[Event "Chinese League Division-A 2024"]
[Site "Fuling Chongqing"]
[Date "2024.07.02"]
[Round "6.19"]
[White "Ding, Yixin"]
[Black "Sun, Fanghui"]
[Result "1-0"]
[ECO "B93"]
[WhiteElo "2397"]
[BlackElo "2115"]
[Annotator "TA"]
[PlyCount "79"]
[EventDate "2024.06.28"]
[EventType "team-tourn"]
[EventCountry "CHN"]
[SourceTitle "playchess.com"]
[Source "ChessBase"]
[SourceQuality "1"]
[TimeControl "40/5400+30:1800+30"]

{[%evp 20,79,0,0,35,34,38,0,49,30,39,43,58,53,65,0,0,0,0,0,35,0,7,0,364,385,511,352,1139,327,344,349,284,316,451,218,223,223,223,223,223,216,214,212,217,213,207,204,178,124,234,229,197,152,352,365,408,364,450,385,371,358]} 1. e4 {[%emt 0:00:03]} c5 {[%emt 0:00:06]} 2. Nf3 {[%emt 0:00:05]} d6 {[%emt 0:00:05]} 3. d4 {[%emt 0:00:08]} cxd4 {[%emt 0:00:07]} 4. Nxd4 {[%emt 0:00:03]} Nf6 {[%emt 0:00:05]} 5. Nc3 {[%emt 0:00:11]} a6 {[%emt 0:00:05]} 6. f4 {[%emt 0:01:16]} e5 {[%emt 0:00:05]} 7. Nf3 {[%emt 0:00:21]} Nbd7 {[%emt 0:00:06]} 8. a4 {[%emt 0:04:26]} Be7 {[%emt 0:03:57]} 9. Bc4 {[%emt 0:00:28]} O-O {[%emt 0:04:16]} 10. O-O {[%emt 0:00:05]} Qc7 {[%emt 0:00:59]} 11. Qe2 {[%emt 0:05:28]} b6 {[%emt 0:17:56]} 12. Kh1 {[%emt 0:12:25][%cal Og2g4]} Bb7 {[%emt 0:03:47]} 13. Nh4 {[%emt 0:19:44]} Rfe8 {[%emt 0:18:25]} (13... Nc5 $11) 14. Nf5 $14 {[%emt 0:11:31]} Bf8 {[%emt 0:08:37]} 15. fxe5 {[%emt 0:01:06]} Nxe5 {[%emt 0:00:17]} 16. Bb3 {[%emt 0:01:04][%cal Of5h6] And now Nh6+! would win.} d5 {[%emt 0:07:39]} 17. Nxd5 {[%emt 0:05:00] White is more active.} (17. exd5 $14 Neg4 18. Bf4) 17... Bxd5 $11 {[%emt 0:00:30]} 18. Bxd5 {[%emt 0:00:10]} (18. exd5 Neg4 19. d6 (19. Bf4 $2 Qxf4 20. Rxf4 Rxe2 $19) 19... Bxd6 $17) 18... Nxd5 {[%emt 0:00:38]} 19. exd5 {[%emt 0:00:02]} Rad8 {[%emt 0:00:10]} 20. Bf4 {[%emt 0:11:02]} (20. Qxa6 Ng4 21. d6 Qc5 $17 (21... Bxd6 22. h3 $16)) (20. Ne3 {simplifies} Qc8 21. Bd2 Bc5 22. Bc3) 20... Qc4 {[%emt 0:06:03]} 21. Rae1 {[%emt 0:07:36] Qxc4 is the strong threat.} Qxd5 {[%emt 0:05:07][%mdl 8192]} 22. Bxe5 $18 {[%emt 0:02:15][%cal Of5h6] [#] Black must now prevent Nh6+!} f6 {[%emt 0:00:21][%cal Re8e5]} 23. Qg4 {[%emt 0:01:43]} h5 $2 {[%emt 0:00:07]} (23... Rxe5 $2 24. Rxe5 (24. Nh6+ Kh8 $18) 24... Qd2 25. Re2 $18) (23... fxe5 24. Nh6+ Kh8) 24. Nh6+ $2 {[%emt 0:02:54]} ({Stronger than} 24. Qxh5 Rxe5 25. Qg4 Rxe1 26. Rxe1 Qc5 $11) (24. Qg6) 24... Kh7 {[%emt 0:00:04]} 25. Qf5+ {[%emt 0:04:22]} ({Less strong is} 25. Qxh5 Rxe5 26. Nf5+ Kg8 $11) 25... g6 {[%emt 0:00:12]} 26. Qxf6 {[%emt 0:00:06][%csl Ge5][%cal Rf6h8]} Bxh6 {[%emt 0:00:05]} 27. Bc3 {[%emt 0:03:01]} (27. Rd1 $142 Rxe5 28. Qxd8 Qxd8 29. Rxd8) 27... Qb7 {[%emt 0:05:01]} 28. Rxe8 {[%emt 0:05:09]} Rxe8 {[%emt 0:00:04] [#]} 29. Qf7+ {[%emt 0:00:04]} Qxf7 {[%emt 0:00:05]} 30. Rxf7+ {[%emt 0:00:02][%mdl 4096] Endgame. KRB-KRB} Kg8 {[%emt 0:00:06]} 31. Rf6 {[%emt 0:00:07][%csl LRb6,LRg6]} Be3 {[%emt 0:02:06]} 32. Rxg6+ {[%emt 0:00:34]} Kh7 {[%emt 0:00:04]} 33. Rg7+ {[%emt 0:02:25]} Kh6 {[%emt 0:00:05][%cal Oe3d2]} 34. Ra7 {[%emt 0:00:09]} ({White should play} 34. g3 $18) 34... a5 {[%emt 0:00:30]} (34... h4 $16 35. Rf7 (35. Rxa6 {leads to mate.} Rd8) 35... Re4) 35. g3 {[%emt 0:00:10][%cal Bg2g3,Bg3h4][%mdl 32]} Bc5 {[%emt 0:00:45]} 36. Rc7 {[%emt 0:00:59][%cal Oc3a5]} Be3 $2 {[%emt 0:03:20] Loses the game.} (36... Re2 $16 {is a better defense.} 37. Bxa5 Kg5) 37. Kg2 {[%emt 0:00:07]} Kg5 {[%emt 0:00:09]} 38. Kf3 {[%emt 0:00:57] Hoping for Rc6.} h4 {[%emt 0:01:13]} 39. Rg7+ {[%emt 0:01:42]} Kh6 {[%emt 0:00:05]} 40. gxh4 {[%emt 0:00:00] Weighted Error Value: White=0.49/Black=0.57.  Loses game:     	---       	Black=2      Mistake:       	White=4     	Black=3      Inaccurate:     	White=3     	Black=2      OK:         	White=11    	Black=7      Best:        	White=2     	Black=5} 1-0

[Event "Chinese League Division-A 2024"]
[Site "Fuling Chongqing"]
[Date "2024.07.02"]
[Round "6.20"]
[White "Zhang, Lanlin"]
[Black "Zhu, Jiner"]
[Result "0-1"]
[ECO "B33"]
[WhiteElo "2161"]
[BlackElo "2476"]
[Annotator "TA"]
[PlyCount "86"]
[EventDate "2024.06.28"]
[EventType "team-tourn"]
[EventCountry "CHN"]
[SourceTitle "playchess.com"]
[Source "ChessBase"]
[SourceQuality "1"]
[TimeControl "40/5400+30:1800+30"]

{[%evp 27,86,22,37,0,0,0,0,-46,-39,-97,-42,-413,-402,-512,-515,-871,-864,-850,-706,-761,-750,-764,-750,-5221,-306,-304,-252,-1121,-1205,-640,-1154,-29990,-29991,-29994,-29984,-29985,-29985,-29983,-29984,-29991,-29992,-29992,-29980,-29985,-29978,-29990,-29985,-29988,-29989,-29989,-29990,-29990,-29991,-29991,-29988,-29992,-29993,-29995,-29996,-29996,-29997]} 1. e4 {[%emt 0:00:03]} c5 {[%emt 0:00:06]} 2. Nf3 {[%emt 0:00:04]} Nc6 {[%emt 0:00:05]} 3. d4 {[%emt 0:01:43]} cxd4 {[%emt 0:00:08]} 4. Nxd4 {[%emt 0:00:03]} Nf6 {[%emt 0:00:06]} 5. Nc3 {[%emt 0:00:04]} e5 {[%emt 0:00:12]} 6. Ndb5 {[%emt 0:01:04]} d6 {[%emt 0:00:09]} 7. Bg5 {[%emt 0:01:17]} a6 {[%emt 0:00:08]} 8. Na3 {[%emt 0:00:04]} b5 {[%emt 0:00:06]} 9. Nd5 {[%emt 0:01:00]} Be7 {[%emt 0:00:07]} 10. Bxf6 {[%emt 0:00:05]} Bxf6 {[%emt 0:00:03]} 11. c3 {[%emt 0:00:05]} O-O {[%emt 0:06:46]} 12. Nc2 {[%emt 0:03:15]} Bg5 {[%emt 0:00:07]} 13. h4 {[%emt 0:00:58]} Bh6 {[%emt 0:00:16]} 14. g4 {[%emt 0:18:26]} Bf4 {[%emt 0:00:16]} 15. g5 {[%emt 0:01:12]} Rb8 {[%emt 0:14:44]} 16. Bh3 {[%emt 0:03:37]} Be6 {[%emt 0:09:21]} 17. Nce3 {[%emt 0:13:24]} (17. Nxf4 $11 exf4 18. Bxe6 fxe6 19. Qd2) 17... b4 {[%emt 0:09:50]} (17... Bxe3 {simplifies} 18. Nxe3 b4 19. Qd3 bxc3 20. bxc3 Na5) 18. Bf5 {[%emt 0:16:47]} (18. c4 $15) 18... Bxe3 {[%emt 0:01:23]} (18... bxc3 $17 19. bxc3 Ne7) 19. Bxh7+ $2 {[%emt 0:02:17][%mdl 8192]} (19. Nxe3 $15 bxc3 20. bxc3) 19... Kxh7 $19 {[%emt 0:02:11]} 20. Qh5+ {[%emt 0:00:04]} Kg8 {[%emt 0:00:08]} 21. Nf6+ {[%emt 0:00:08]} (21. fxe3 $142 Bxd5 22. exd5) 21... gxf6 {[%emt 0:02:58]} 22. fxe3 {[%emt 0:32:20]} Re8 {[%emt 0:00:12] ...bxc3 would now be deadly.} 23. Qh6 {[%emt 0:00:32] [#]} f5 $1 {[%emt 0:00:08] aiming for ...Qb6.} (23... fxg5 24. hxg5) 24. Rg1 {[%emt 0:02:42]} bxc3 {[%emt 0:07:07]} ({Less strong is} 24... fxe4 25. g6 Qf6 26. O-O-O $17) 25. bxc3 {[%emt 0:01:01]} fxe4 $2 {[%emt 0:07:44]} (25... Qa5 26. Rc1 Qa3 (26... Qxa2 27. g6 $11)) 26. g6 {[%emt 0:00:40] White wants to mate with gxf7+.} Qf6 {[%emt 0:00:06]} 27. O-O-O {[%emt 0:00:28] Wards off Rb2} (27. gxf7+ Kxf7 28. Qh7+ Kf8 29. Rf1 Qxf1+ (29... Bf5 $2 30. Rxf5 $18) 30. Kxf1) 27... Bxa2 {[%emt 0:01:06]} 28. gxf7+ {[%emt 0:00:20]} Kxf7 {[%emt 0:00:04] [#] ( -> ...Rb1+)} 29. Rgf1 {[%emt 0:00:44]} Rb1+ {[%emt 0:01:23] Black mates.} 30. Kc2 {[%emt 0:00:13]} Qxf1 {[%emt 0:00:13][%csl Gb1][%cal Rf1d1]} 31. Qh7+ {[%emt 0:00:46]} Ke6 {[%emt 0:00:35][%csl Gb1][%cal Rf1d1]} 32. Qg6+ {[%emt 0:00:16]} Qf6 {[%emt 0:00:30]} 33. Rxd6+ {[%emt 0:00:42]} Kxd6 {[%emt 0:00:05]} 34. Qxf6+ {[%emt 0:00:03]} Re6 {[%emt 0:00:06]} 35. Qf8+ {[%emt 0:00:24]} Kc7 {[%emt 0:00:05]} 36. h5 {[%emt 0:00:45]} Rh1 {[%emt 0:00:32]} 37. Kb2 {[%emt 0:00:42]} Rh2+ {[%emt 0:00:13]} 38. Kc1 {[%emt 0:00:34]} Rd6 {[%emt 0:00:27]} 39. Qg7+ {[%emt 0:00:33]} Rd7 {[%emt 0:00:16]} 40. Qg3 {[%emt 0:00:00]} Rxh5 {[%emt 0:00:00]} 41. Qg4 {[%emt 0:00:36]} Rh1+ {[%emt 0:00:42]} 42. Kb2 {[%emt 0:00:03]} Rd2+ {[%emt 0:01:02]} 43. Ka3 {[%emt 0:00:05]} Bc4 {[%emt 0:00:18] White did not feel at home in the position after the opening.   Weighted Error Value: White=1.26/Black=0.50.  Loses game:     	White=1     	---        Mistake:       	White=4     	Black=1      OK:         	White=1     	Black=3      Best:        	---       	Black=1} 0-1

[Event "Chinese League Division-A 2024"]
[Site "Fuling Chongqing"]
[Date "2024.07.02"]
[Round "6.21"]
[White "Xu, Yi"]
[Black "Wang, Hao"]
[Result "0-1"]
[ECO "C47"]
[WhiteElo "2496"]
[BlackElo "2702"]
[Annotator "TA"]
[PlyCount "80"]
[EventDate "2024.06.28"]
[EventType "team-tourn"]
[EventCountry "CHN"]
[SourceTitle "playchess.com"]
[Source "ChessBase"]
[SourceQuality "1"]
[TimeControl "40/5400+30:1800+30"]

{[%evp 13,80,0,0,-4,8,5,16,14,21,14,14,14,19,16,13,0,0,0,0,0,0,0,0,0,0,0,0,0,0,0,0,0,0,0,0,0,0,0,0,0,0,0,0,-8,0,-80,-70,-155,-134,-233,-233,-200,-171,-112,-112,-177,-119,-424,-429,-408,-393,-392,-365,-2707,-2327,-29966,-29967,-29967,-29968]} 1. e4 {[%emt 0:00:03]} e5 {[%emt 0:00:04]} 2. Nf3 {[%emt 0:00:05]} Nc6 {[%emt 0:00:04]} 3. Nc3 {[%emt 0:00:05]} Nf6 {[%emt 0:00:08]} 4. d4 {[%emt 0:00:05]} exd4 {[%emt 0:04:24]} 5. Nxd4 {[%emt 0:00:05]} Bb4 {[%emt 0:00:08]} 6. Nxc6 {[%emt 0:00:06]} bxc6 {[%emt 0:00:04]} 7. Bd3 {[%emt 0:00:09]} d5 {[%emt 0:00:14]} 8. Bd2 {[%emt 0:00:22]} Bg4 {[%emt 0:18:16]} 9. Qc1 {[%emt 0:00:15]} O-O {[%emt 0:03:46]} 10. O-O {[%emt 0:03:45] The position is equal.} Bxc3 {[%emt 0:08:47]} 11. Bxc3 {[%emt 0:00:16]} dxe4 {[%emt 0:00:04]} 12. Bxf6 {[%emt 0:00:09]} Qxf6 {[%emt 0:00:04]} 13. Bxe4 {[%emt 0:00:06]} Rfe8 {[%emt 0:00:04]} 14. f3 {[%emt 0:05:10][%cal Oc2c3]} Bf5 {[%emt 0:00:40]} 15. Bxf5 {[%emt 0:17:13]} Qxf5 {[%emt 0:00:20]} 16. Qd2 {[%emt 0:00:28] Wards off Re2} Qc5+ {[%emt 0:06:22]} 17. Qf2 {[%emt 0:04:15]} Qb5 {[%emt 0:04:46]} 18. b3 {[%emt 0:02:23]} Re2 {[%emt 0:01:53]} 19. c4 {[%emt 0:02:13]} Rxf2 {[%emt 0:00:03]} 20. cxb5 {[%emt 0:00:06]} Rxf1+ {[%emt 0:00:04]} 21. Kxf1 {[%emt 0:00:07]} cxb5 $11 {[%emt 0:00:02][%mdl 4096] Endgame. KR-KR} 22. Rc1 {[%emt 0:00:07]} Rc8 {[%emt 0:00:03]} 23. Rc6 {[%emt 0:00:22]} g6 {[%emt 0:01:41]} 24. Ra6 {[%emt 0:00:22]} c5 {[%emt 0:01:25]} 25. Rxa7 {[%emt 0:00:09]} c4 {[%emt 0:00:04]} 26. bxc4 {[%emt 0:00:28]} bxc4 {[%emt 0:00:06] White must now prevent ...c3.} 27. Rd7 {[%emt 0:06:31]} Kg7 {[%emt 0:02:12]} (27... c3 $5 28. Rd1 $8 Ra8 $11) 28. Ke2 {[%emt 0:13:26]} Kf6 {[%emt 0:02:50]} 29. Ke3 {[%emt 0:05:10] [#]} (29. Rd2 $11 {keeps the balance.}) 29... Re8+ $1 $17 {[%emt 0:05:12]} 30. Kf4 {[%emt 0:22:32] [#]} (30. Kd4 $15) 30... g5+ $1 {[%emt 0:14:22]} 31. Kg3 {[%emt 0:00:47]} (31. Kg4 $17 {might work better.}) 31... Rc8 $19 {[%emt 0:01:03] Hoping for ...c3.} 32. Kf2 {[%emt 0:07:38]} Ke6 {[%emt 0:05:12]} 33. Rd1 {[%emt 0:03:14]} Ra8 {[%emt 0:00:40]} 34. Rd2 {[%emt 0:05:12]} (34. a3 $17) 34... Ra3 {[%emt 0:04:42]} ({Better is} 34... Ke5 $19 {And now ...c3 would win.} 35. Ke1 c3) 35. g4 $2 {[%emt 0:03:04][%mdl 8192] This move loses the game for White.} (35. Rd4 $17) 35... c3 {[%emt 0:01:26]} 36. Rc2 {[%emt 0:00:49]} Kd5 {[%emt 0:00:04]} 37. Ke3 {[%emt 0:00:06]} Kc4 {[%emt 0:00:05]} 38. h4 $2 {[%emt 0:01:33]} (38. Ke2) 38... gxh4 {[%emt 0:02:45]} 39. Rh2 {[%emt 0:00:25]} Ra6 {[%emt 0:00:31]} ({Stronger than} 39... c2+ 40. Kd2 $11) 40. Rxh4 {[%emt 0:00:00]} Re6+ {[%emt 0:00:00] Weighted Error Value: White=0.67/Black=0.02 (flawless) .  Loses game:     	White=1     	---        Mistake:       	White=5     	Black=1      Inaccurate:     	White=1     	---        OK:         	White=16    	Black=14     Best:        	White=3     	Black=5      Strong:       	---       	Black=1} 0-1

[Event "Chinese League Division-A 2024"]
[Site "Fuling Chongqing"]
[Date "2024.07.02"]
[Round "6.22"]
[White "Zhao, Jun"]
[Black "Lou, Yiping"]
[Result "1/2-1/2"]
[ECO "C67"]
[WhiteElo "2538"]
[BlackElo "2442"]
[Annotator "TA"]
[PlyCount "75"]
[EventDate "2024.06.28"]
[EventType "team-tourn"]
[EventCountry "CHN"]
[SourceTitle "playchess.com"]
[Source "ChessBase"]
[SourceQuality "1"]
[TimeControl "40/5400+30:1800+30"]

{[%evp 16,75,0,0,23,27,19,13,5,13,0,4,16,13,8,8,9,0,11,0,0,0,86,96,88,65,78,56,67,62,83,79,83,49,81,60,79,49,59,13,15,-4,25,28,26,36,58,32,32,32,80,0,0,0,0,0,0,0,0,0,0,0]} 1. e4 {[%emt 0:00:13]} e5 {[%emt 0:00:11]} 2. Nf3 {[%emt 0:00:08]} Nc6 {[%emt 0:00:04]} 3. Bb5 {[%emt 0:00:35]} Nf6 {[%emt 0:00:18]} 4. O-O {[%emt 0:00:18]} Nxe4 {[%emt 0:00:13]} 5. Re1 {[%emt 0:00:05]} Nd6 {[%emt 0:00:07]} 6. Nxe5 {[%emt 0:00:09]} Be7 {[%emt 0:00:05]} 7. Bf1 {[%emt 0:00:08]} Nxe5 {[%emt 0:00:35]} 8. Rxe5 {[%emt 0:00:08]} O-O {[%emt 0:00:06]} 9. d4 {[%emt 0:00:07]} Ne8 {[%emt 0:01:02]} 10. c4 {[%emt 0:07:51]} Bf6 {[%emt 0:10:15]} 11. Re1 {[%emt 0:00:12]} d5 {[%emt 0:00:14]} 12. cxd5 {[%emt 0:00:14]} Qxd5 {[%emt 0:00:54]} 13. Be3 {[%emt 0:00:12]} Bf5 {[%emt 0:04:04]} 14. Nc3 {[%emt 0:00:34]} Qd7 {[%emt 0:00:22]} 15. a4 {[%emt 0:14:00][%cal Ba2a4,Ba4a5][%mdl 32]} Nd6 {[%emt 0:06:38]} 16. a5 {[%emt 0:01:49]} Ne4 {[%emt 0:16:59]} 17. a6 {[%emt 0:11:42]} Nxc3 {[%emt 0:13:41]} 18. bxc3 {[%emt 0:00:07]} c6 {[%emt 0:00:06]} (18... b6 $11) 19. axb7 $16 {[%emt 0:08:48]} Qxb7 {[%emt 0:00:03]} 20. Qf3 {[%emt 0:01:09]} Be6 {[%emt 0:01:51][%cal Bf5e6,Be6d5,Bd5e4][%mdl 32]} 21. Reb1 {[%emt 0:05:35]} Qd7 {[%emt 0:00:23]} 22. Ra6 {[%emt 0:00:03][%cal Of1d3] White is more active.} Bd5 {[%emt 0:01:14]} 23. Qg3 {[%emt 0:02:17]} Rfe8 {[%emt 0:06:38]} 24. h3 {[%emt 0:00:48]} Qe7 {[%emt 0:04:13]} 25. Rba1 {[%emt 0:05:41]} h5 {[%emt 0:05:31]} 26. c4 {[%emt 0:03:28]} Be4 {[%emt 0:00:43]} 27. R1a5 {[%emt 0:00:05]} (27. R1a4 $14 {deserves consideration.}) 27... Qd8 $11 {[%emt 0:10:36]} 28. d5 {[%emt 0:18:47]} Be5 {[%emt 0:00:10]} (28... Rb8 {feels hotter.} 29. Rxa7 Rb1 30. d6 Qb8) 29. Bf4 {[%emt 0:00:49]} Bxf4 {[%emt 0:00:13]} 30. Qxf4 {[%emt 0:00:06]} cxd5 {[%emt 0:00:08]} 31. Rxa7 {[%emt 0:01:57]} Rxa7 {[%emt 0:02:47]} 32. Rxa7 {[%emt 0:00:05]} Re7 {[%emt 0:00:04] [#]} (32... Bg6 $14 {should be considered.}) 33. Qh4 {[%emt 0:09:18]} (33. Rxe7 $1 $16 Qxe7 34. Qe3) 33... Rd7 {[%emt 0:00:16] The position is equal.} 34. Qxd8+ {[%emt 0:01:44]} (34. Qxh5 $2 {perishes.} Rxa7 35. Qe5 Re7 $19) 34... Rxd8 {[%emt 0:00:03]} 35. f3 {[%emt 0:00:20]} Bc2 {[%emt 0:01:38] Strongly threatening ...d4.} 36. Ra2 {[%emt 0:07:40]} Bb3 {[%emt 0:02:53]} 37. Rd2 {[%emt 0:00:04]} Kf8 {[%emt 0:01:10]} 38. cxd5 {[%emt 0:00:04] Weighted Error Value: White=0.14 (very precise) /Black=0.14 (very precise) .  Mistake:       	White=2     	Black=2      Inaccurate:     	White=3     	Black=2      OK:         	White=7     	Black=10     Best:        	White=2     	Black=1} 1/2-1/2